[Event "2026 Biel Blitz Open"]
[Site "Biel, CH"]
[Date "2026.07.19"]
[Round "2"]
[White "Alexakis, Dimitrios"]
[Black "Stevens, Christian"]
[Result "1-0"]
[Board "42"]
[TimeControl "180+2"]
[WhiteFideId "4200527"]
[BlackFideId "649090"]
[WhiteElo "1895"]
[BlackElo "1912"]
[WhiteClock "0:00:17"]
[BlackClock "0:00:08"]
[Variant "Standard"]
[EndDate "2026.07.19"]
[EndTime "12:10:15"]

1. e4 {[%clk 0:03:00]}  c5 {[%clk 0:03:04]} 2. Nf3 {[%clk 0:03:00]}  d6 {[%clk 0:03:05]} 3. d4 {[%clk 0:02:59]}  cxd4 {[%clk 0:03:06]}
4. Nxd4 {[%clk 0:02:59]}  Nf6 {[%clk 0:03:06]} 5. Nc3 {[%clk 0:03:00]}  a6 {[%clk 0:03:04]} 6. Bg5 {[%clk 0:03:00]}  e6 {[%clk 0:03:03]}
7. f4 {[%clk 0:02:59]}  Be7 {[%clk 0:03:02]} 8. Qf3 {[%clk 0:02:59]}  Nbd7 {[%clk 0:02:49]} 9. O-O-O {[%clk 0:02:58]}  Qc7 {[%clk 0:02:49]}
10. g4 {[%clk 0:02:52]}  b5 {[%clk 0:02:47]} 11. Bxf6 {[%clk 0:02:51]}  Nxf6 {[%clk 0:02:39]} 12. g5 {[%clk 0:02:51]}  Nd7 {[%clk 0:02:40]}
13. a3 {[%clk 0:02:52]}  Bb7 {[%clk 0:02:40]} 14. h4 {[%clk 0:02:49]}  Rc8 {[%clk 0:02:34]} 15. Bh3 {[%clk 0:02:40]}  Nc5 {[%clk 0:02:11]}
16. Rh2 {[%clk 0:02:30]}  O-O {[%clk 0:01:00]} 17. f5 {[%clk 0:02:27]}  d5 {[%clk 0:00:46]} 18. Rf2 {[%clk 0:01:57]}  dxe4 {[%clk 0:00:41]}
19. Qe3 {[%clk 0:01:50]}  exf5 {[%clk 0:00:13]} 20. Nxf5 {[%clk 0:01:43]}  Rce8 {[%clk 0:00:12]} 21. Nd5 {[%clk 0:01:24]}  Bxd5 {[%clk 0:00:10]}
22. Rxd5 {[%clk 0:01:24]}  Ne6 {[%clk 0:00:09]} 23. Qxe4 {[%clk 0:01:05]}  Bxg5+ {[%clk 0:00:07]} 24. hxg5 {[%clk 0:00:48]}  Nxg5 {[%clk 0:00:07]}
25. Qd4 {[%clk 0:00:43]}  Ne6 {[%clk 0:00:04]} 26. Qd2 {[%clk 0:00:32]}  Qc4 {[%clk 0:00:04]} 27. Rf1 {[%clk 0:00:19]}  Qa2 {[%clk 0:00:05]}
28. c3 {[%clk 0:00:18]}  Rc8 {[%clk 0:00:05]} 29. Ne7+ {[%clk 0:00:15]}  Kh8 {[%clk 0:00:06]} 30. Nxc8 {[%clk 0:00:16]}  Rxc8 {[%clk 0:00:07]}
31. Bxe6 {[%clk 0:00:16]}  fxe6 {[%clk 0:00:08]} 32. Rd8+ {[%clk 0:00:17]} 1-0

[Event "2026 Biel Blitz Open"]
[Site "Biel, CH"]
[Date "2026.07.19"]
[Round "2"]
[White "Gireada, Daniel"]
[Black "Paholok, Igor"]
[Result "1-0"]
[Board "46"]
[TimeControl "180+2"]
[WhiteFideId "1206451"]
[BlackFideId "1338951"]
[WhiteElo "2148"]
[BlackElo "1728"]
[WhiteClock "0:01:16"]
[BlackClock "0:00:16"]
[Variant "Standard"]
[EndDate "2026.07.19"]
[EndTime "12:14:36"]

1. d4 {[%clk 0:03:02]}  g6 {[%clk 0:03:02]} 2. c4 {[%clk 0:03:02]}  Bg7 {[%clk 0:03:00]} 3. Nf3 {[%clk 0:03:02]}  d6 {[%clk 0:02:57]}
4. Nc3 {[%clk 0:03:00]}  c5 {[%clk 0:02:53]} 5. g3 {[%clk 0:02:54]}  f5 {[%clk 0:02:48]} 6. Bg2 {[%clk 0:02:43]}  Nc6 {[%clk 0:02:34]}
7. d5 {[%clk 0:02:37]}  Bxc3+ {[%clk 0:02:33]} 8. bxc3 {[%clk 0:02:37]}  Na5 {[%clk 0:01:55]} 9. Nd2 {[%clk 0:02:11]}  Nf6 {[%clk 0:01:50]}
10. O-O {[%clk 0:02:09]}  b6 {[%clk 0:01:45]} 11. e4 {[%clk 0:02:02]}  fxe4 {[%clk 0:01:39]} 12. Nxe4 {[%clk 0:02:02]}  Bf5 {[%clk 0:00:41]}
13. Nxf6+ {[%clk 0:02:00]}  exf6 {[%clk 0:00:42]} 14. Re1+ {[%clk 0:02:01]}  Kd7 {[%clk 0:00:42]} 15. Qa4+ {[%clk 0:01:55]}  Kc7 {[%clk 0:00:41]}
16. Bf4 {[%clk 0:01:56]}  Bd7 {[%clk 0:00:31]} 17. Qc2 {[%clk 0:01:50]}  Re8 {[%clk 0:00:28]} 18. Qd3 {[%clk 0:01:45]}  Bf5 {[%clk 0:00:20]}
19. Be4 {[%clk 0:01:45]}  Bxe4 {[%clk 0:00:16]} 20. Rxe4 {[%clk 0:01:45]}  Rxe4 {[%clk 0:00:17]} 21. Qxe4 {[%clk 0:01:45]}  Qe8 {[%clk 0:00:18]}
22. Re1 {[%clk 0:01:46]}  Qxe4 {[%clk 0:00:17]} 23. Rxe4 {[%clk 0:01:47]}  Kd7 {[%clk 0:00:18]} 24. Re6 {[%clk 0:01:34]}  Nxc4 {[%clk 0:00:16]}
25. Rxf6 {[%clk 0:01:35]}  Ne5 {[%clk 0:00:13]} 26. Bxe5 {[%clk 0:01:25]}  dxe5 {[%clk 0:00:14]} 27. Re6 {[%clk 0:01:25]}  Re8 {[%clk 0:00:15]}
28. Rxe8 {[%clk 0:01:21]}  Kxe8 {[%clk 0:00:16]} 29. c4 {[%clk 0:01:22]}  Kd7 {[%clk 0:00:17]} 30. Kg2 {[%clk 0:01:19]}  a6 {[%clk 0:00:15]}
31. a4 {[%clk 0:01:18]}  Ke7 {[%clk 0:00:16]} 32. Kf3 {[%clk 0:01:19]}  Kf6 {[%clk 0:00:18]} 33. Ke4 {[%clk 0:01:17]}  g5 {[%clk 0:00:16]}
34. g4 {[%clk 0:01:16]}  h6 {[%clk 0:00:16]} 35. f3 {[%clk 0:01:16]} 1-0

[Event "2026 Biel Blitz Open"]
[Site "Biel, CH"]
[Date "2026.07.19"]
[Round "2"]
[White "Altenburger, Rene"]
[Black "Boner, Timm"]
[Result "1-0"]
[Board "51"]
[TimeControl "180+2"]
[WhiteFideId "1305581"]
[BlackFideId "1330039"]
[WhiteElo "1990"]
[BlackElo "1705"]
[WhiteClock "0:00:41"]
[BlackClock "0:01:03"]
[Variant "Standard"]
[EndDate "2026.07.19"]
[EndTime "12:06:37"]

1. d4 {[%clk 0:03:01]}  d5 {[%clk 0:03:03]} 2. Nf3 {[%clk 0:03:01]}  Nc6 {[%clk 0:03:04]} 3. Bf4 {[%clk 0:03:01]}  Nf6 {[%clk 0:03:05]}
4. e3 {[%clk 0:03:01]}  Bf5 {[%clk 0:03:05]} 5. Bb5 {[%clk 0:02:53]}  e6 {[%clk 0:03:06]} 6. Ne5 {[%clk 0:02:46]}  Nd7 {[%clk 0:02:41]}
7. Bxc6 {[%clk 0:02:44]}  bxc6 {[%clk 0:02:37]} 8. Nxc6 {[%clk 0:02:43]}  Qh4 {[%clk 0:02:28]} 9. Nd2 {[%clk 0:02:23]}  g5 {[%clk 0:02:26]}
10. Nf3 {[%clk 0:02:22]}  Qg4 {[%clk 0:02:11]} 11. Bg3 {[%clk 0:01:59]}  Be4 {[%clk 0:02:07]} 12. O-O {[%clk 0:01:25]}  Bxf3 {[%clk 0:02:02]}
13. gxf3 {[%clk 0:01:21]}  Qh5 {[%clk 0:01:54]} 14. f4 {[%clk 0:01:19]}  g4 {[%clk 0:01:54]} 15. f3 {[%clk 0:01:10]}  Rg8 {[%clk 0:01:49]}
16. fxg4 {[%clk 0:01:09]}  Rxg4 {[%clk 0:01:45]} 17. Qf3 {[%clk 0:00:57]}  Bd6 {[%clk 0:01:34]} 18. Ne5 {[%clk 0:00:55]}  Nxe5 {[%clk 0:01:19]}
19. fxe5 {[%clk 0:00:55]}  Be7 {[%clk 0:01:20]} 20. Kh1 {[%clk 0:00:43]}  O-O-O {[%clk 0:01:07]} 21. c4 {[%clk 0:00:44]}  Rdg8 {[%clk 0:01:06]}
22. cxd5 {[%clk 0:00:43]}  Rxg3 {[%clk 0:01:03]} 23. Qxh5 {[%clk 0:00:41]} 1-0

[Event "2026 Biel Blitz Open"]
[Site "Biel, CH"]
[Date "2026.07.19"]
[Round "2"]
[White "Heitmann, Erik"]
[Black "Tahari, Youcef Nazim"]
[Result "0-1"]
[Board "52"]
[TimeControl "180+2"]
[WhiteFideId "34608940"]
[BlackFideId "282537"]
[WhiteElo "1885"]
[BlackElo "1691"]
[WhiteClock "0:00:06"]
[BlackClock "0:00:19"]
[Variant "Standard"]
[EndDate "2026.07.19"]
[EndTime "12:15:54"]

1. d4 {[%clk 0:03:04]}  Nf6 {[%clk 0:03:03]} 2. c4 {[%clk 0:03:04]}  g6 {[%clk 0:03:04]} 3. Nc3 {[%clk 0:03:05]}  d5 {[%clk 0:03:05]}
4. cxd5 {[%clk 0:03:06]}  Nxd5 {[%clk 0:03:06]} 5. e4 {[%clk 0:03:07]}  Nxc3 {[%clk 0:03:07]} 6. bxc3 {[%clk 0:03:09]}  Bg7 {[%clk 0:03:09]}
7. Bc4 {[%clk 0:03:09]}  c5 {[%clk 0:03:07]} 8. Ne2 {[%clk 0:03:07]}  O-O {[%clk 0:02:59]} 9. Be3 {[%clk 0:03:06]}  b6 {[%clk 0:02:54]}
10. Qd2 {[%clk 0:02:55]}  Nd7 {[%clk 0:02:46]} 11. Bh6 {[%clk 0:02:12]}  Bb7 {[%clk 0:02:37]} 12. f3 {[%clk 0:02:03]}  Qc7 {[%clk 0:02:36]}
13. Bxg7 {[%clk 0:01:51]}  Kxg7 {[%clk 0:02:36]} 14. Bb3 {[%clk 0:01:52]}  Rad8 {[%clk 0:02:23]} 15. O-O {[%clk 0:01:46]}  Ba6 {[%clk 0:01:40]}
16. Rfd1 {[%clk 0:01:47]}  Bxe2 {[%clk 0:01:01]} 17. Qxe2 {[%clk 0:01:48]}  cxd4 {[%clk 0:00:54]} 18. cxd4 {[%clk 0:01:49]}  Nf6 {[%clk 0:00:47]}
19. Rac1 {[%clk 0:01:49]}  Qb7 {[%clk 0:00:46]} 20. Qb2 {[%clk 0:01:30]}  Rc8 {[%clk 0:00:38]} 21. d5 {[%clk 0:01:29]}  Kg8 {[%clk 0:00:33]}
22. Ba4 {[%clk 0:01:28]}  Rxc1 {[%clk 0:00:33]} 23. Rxc1 {[%clk 0:01:29]}  Rc8 {[%clk 0:00:27]} 24. Bc6 {[%clk 0:01:21]}  Qc7 {[%clk 0:00:24]}
25. Rc2 {[%clk 0:01:03]}  Qf4 {[%clk 0:00:25]} 26. Qc1 {[%clk 0:00:53]}  Qe5 {[%clk 0:00:21]} 27. a4 {[%clk 0:00:47]}  Qd4+ {[%clk 0:00:20]}
28. Kh1 {[%clk 0:00:46]}  Rc7 {[%clk 0:00:15]} 29. Rc4 {[%clk 0:00:46]}  Qe5 {[%clk 0:00:16]} 30. Qc3 {[%clk 0:00:42]}  Qxc3 {[%clk 0:00:09]}
31. Rxc3 {[%clk 0:00:43]}  Nd7 {[%clk 0:00:12]} 32. f4 {[%clk 0:00:23]}  Nc5 {[%clk 0:00:13]} 33. Rc4 {[%clk 0:00:24]}  Kg7 {[%clk 0:00:12]}
34. Kg1 {[%clk 0:00:24]}  Kh6 {[%clk 0:00:10]} 35. Kf2 {[%clk 0:00:24]}  Nd3+ {[%clk 0:00:09]} 36. Ke3 {[%clk 0:00:25]}  Nc5 {[%clk 0:00:09]}
37. Kd4 {[%clk 0:00:21]}  Kg7 {[%clk 0:00:11]} 38. a5 {[%clk 0:00:16]}  Nb3+ {[%clk 0:00:11]} 39. Kc3 {[%clk 0:00:12]}  Nxa5 {[%clk 0:00:05]}
40. Ra4 {[%clk 0:00:07]}  Nxc6 {[%clk 0:00:13]} 41. dxc6 {[%clk 0:00:07]}  Rxc6+ {[%clk 0:00:14]} 42. Kd3 {[%clk 0:00:06]}  Rc7 {[%clk 0:00:15]}
43. g4 {[%clk 0:00:04]}  Rb7 {[%clk 0:00:16]} 44. Ra6 {[%clk 0:00:04]}  b5 {[%clk 0:00:16]} 45. Kc3 {[%clk 0:00:05]}  Kf8 {[%clk 0:00:17]}
46. Kb4 {[%clk 0:00:06]}  Ke8 {[%clk 0:00:18]} 47. Rc6 {[%clk 0:00:06]}  Kd7 {[%clk 0:00:18]} 48. Rc5 {[%clk 0:00:08]}  a6 {[%clk 0:00:19]}
49. e5 {[%clk 0:00:07]}  Rc7 {[%clk 0:00:19]} 50. Rd5+ {[%clk 0:00:08]}  Ke6 {[%clk 0:00:19]} 51. Rd4 {[%clk 0:00:06]} 0-1

[Event "2026 Biel Blitz Open"]
[Site "Biel, CH"]
[Date "2026.07.19"]
[Round "2"]
[White "Schreiber, Edwin"]
[Black "Materia, Matteo"]
[Result "0-1"]
[Board "53"]
[TimeControl "180+2"]
[WhiteFideId "2011921"]
[BlackFideId "45150575"]
[WhiteElo "1682"]
[BlackElo "1881"]
[WhiteClock "0:00:03"]
[BlackClock "0:00:07"]
[Variant "Standard"]
[EndDate "2026.07.19"]
[EndTime "12:15:05"]

1. e4 {[%clk 0:03:02]}  e5 {[%clk 0:03:03]} 2. Nc3 {[%clk 0:03:02]}  Nf6 {[%clk 0:03:04]} 3. f4 {[%clk 0:03:02]}  d5 {[%clk 0:03:02]}
4. fxe5 {[%clk 0:03:01]}  Nxe4 {[%clk 0:03:02]} 5. Qf3 {[%clk 0:03:01]}  Nxc3 {[%clk 0:03:00]} 6. dxc3 {[%clk 0:03:01]}  Qh4+ {[%clk 0:02:47]}
7. g3 {[%clk 0:02:47]}  Qe4+ {[%clk 0:02:48]} 8. Qxe4 {[%clk 0:02:46]}  dxe4 {[%clk 0:02:49]} 9. Bg2 {[%clk 0:02:45]}  Nc6 {[%clk 0:02:27]}
10. Bxe4 {[%clk 0:02:27]}  Nxe5 {[%clk 0:02:27]} 11. Nf3 {[%clk 0:02:21]}  Bd6 {[%clk 0:02:20]} 12. Nxe5 {[%clk 0:02:02]}  Bxe5 {[%clk 0:02:20]}
13. O-O {[%clk 0:02:01]}  O-O {[%clk 0:02:20]} 14. Bf4 {[%clk 0:01:49]}  Bxf4 {[%clk 0:01:51]} 15. Rxf4 {[%clk 0:01:47]}  c6 {[%clk 0:01:44]}
16. Bf5 {[%clk 0:01:35]}  Bxf5 {[%clk 0:01:41]} 17. Rxf5 {[%clk 0:01:35]}  Rad8 {[%clk 0:01:42]} 18. Raf1 {[%clk 0:01:25]}  f6 {[%clk 0:01:25]}
19. R5f4 {[%clk 0:01:04]}  Rfe8 {[%clk 0:01:08]} 20. g4 {[%clk 0:00:44]}  Re2 {[%clk 0:00:19]} 21. R4f2 {[%clk 0:00:39]}  Rdd2 {[%clk 0:00:10]}
22. Rxe2 {[%clk 0:00:36]}  Rxe2 {[%clk 0:00:11]} 23. Rf2 {[%clk 0:00:36]}  Re1+ {[%clk 0:00:12]} 24. Kg2 {[%clk 0:00:32]}  Re4 {[%clk 0:00:11]}
25. Kf3 {[%clk 0:00:22]}  Ra4 {[%clk 0:00:10]} 26. a3 {[%clk 0:00:21]}  Ra5 {[%clk 0:00:11]} 27. Rd2 {[%clk 0:00:08]}  Rb5 {[%clk 0:00:07]}
28. b3 {[%clk 0:00:09]}  Kf7 {[%clk 0:00:08]} 29. a4 {[%clk 0:00:08]}  Rb6 {[%clk 0:00:10]} 30. Rd4 {[%clk 0:00:08]}  Ke6 {[%clk 0:00:09]}
31. Ke4 {[%clk 0:00:09]}  g6 {[%clk 0:00:09]} 32. Rd8 {[%clk 0:00:09]}  f5+ {[%clk 0:00:10]} 33. gxf5+ {[%clk 0:00:10]}  gxf5+ {[%clk 0:00:11]}
34. Kf4 {[%clk 0:00:11]}  c5 {[%clk 0:00:07]} 35. Rf8 {[%clk 0:00:08]}  Rd6 {[%clk 0:00:06]} 36. Rxf5 {[%clk 0:00:05]}  Rd2 {[%clk 0:00:07]}
37. Rh5 {[%clk 0:00:03]}  Rxc2 {[%clk 0:00:07]} 0-1

[Event "2026 Biel Blitz Open"]
[Site "Biel, CH"]
[Date "2026.07.19"]
[Round "2"]
[White "Hirt, Markus"]
[Black "Wilhelm, Marco"]
[Result "1-0"]
[Board "54"]
[TimeControl "180+2"]
[WhiteFideId "1302582"]
[BlackFideId "1347039"]
[WhiteElo "1880"]
[BlackElo "1684"]
[WhiteClock "0:00:38"]
[BlackClock "0:00:38"]
[Variant "Standard"]
[EndDate "2026.07.19"]
[EndTime "12:09:44"]

1. e4 {[%clk 0:03:02]}  e6 {[%clk 0:03:04]} 2. d4 {[%clk 0:03:01]}  d5 {[%clk 0:03:05]} 3. Nc3 {[%clk 0:03:01]}  Nf6 {[%clk 0:03:05]}
4. Bg5 {[%clk 0:03:01]}  Be7 {[%clk 0:03:05]} 5. e5 {[%clk 0:03:02]}  Nfd7 {[%clk 0:03:05]} 6. h4 {[%clk 0:03:03]}  h6 {[%clk 0:03:04]}
7. Be3 {[%clk 0:03:03]}  c5 {[%clk 0:02:59]} 8. Qg4 {[%clk 0:03:00]}  O-O {[%clk 0:02:44]} 9. Bxh6 {[%clk 0:02:50]}  Bf6 {[%clk 0:02:28]}
10. exf6 {[%clk 0:02:42]}  Qxf6 {[%clk 0:02:28]} 11. Bg5 {[%clk 0:02:39]}  Qxd4 {[%clk 0:02:14]} 12. Qxd4 {[%clk 0:02:37]}  cxd4 {[%clk 0:02:14]}
13. Nb5 {[%clk 0:02:38]}  Nc6 {[%clk 0:02:07]} 14. O-O-O {[%clk 0:02:32]}  a6 {[%clk 0:01:57]} 15. Nxd4 {[%clk 0:02:27]}  Nce5 {[%clk 0:01:45]}
16. Ngf3 {[%clk 0:02:13]}  Ng4 {[%clk 0:01:42]} 17. Rd2 {[%clk 0:01:50]}  Nb6 {[%clk 0:01:23]} 18. Nb3 {[%clk 0:01:29]}  Bd7 {[%clk 0:00:43]}
19. Be7 {[%clk 0:01:29]}  Rfc8 {[%clk 0:00:41]} 20. Bd3 {[%clk 0:01:21]}  Rc6 {[%clk 0:00:38]} 21. Nfd4 {[%clk 0:01:14]}  Rcc8 {[%clk 0:00:37]}
22. f3 {[%clk 0:01:14]}  Ne5 {[%clk 0:00:37]} 23. Bd6 {[%clk 0:01:09]}  Nec4 {[%clk 0:00:28]} 24. Bxc4 {[%clk 0:01:05]}  Nxc4 {[%clk 0:00:29]}
25. Re2 {[%clk 0:01:04]}  Nxd6 {[%clk 0:00:30]} 26. h5 {[%clk 0:00:58]}  Bb5 {[%clk 0:00:30]} 27. Ree1 {[%clk 0:00:56]}  Rc4 {[%clk 0:00:31]}
28. h6 {[%clk 0:00:53]}  gxh6 {[%clk 0:00:31]} 29. Rxh6 {[%clk 0:00:54]}  Kf8 {[%clk 0:00:26]} 30. Rh8+ {[%clk 0:00:52]}  Ke7 {[%clk 0:00:27]}
31. Rxa8 {[%clk 0:00:53]}  a5 {[%clk 0:00:24]} 32. Rb8 {[%clk 0:00:44]}  a4 {[%clk 0:00:25]} 33. Na1 {[%clk 0:00:44]}  Rxd4 {[%clk 0:00:25]}
34. Rd1 {[%clk 0:00:40]}  Rxd1+ {[%clk 0:00:25]} 35. Kxd1 {[%clk 0:00:41]}  Bc6 {[%clk 0:00:26]} 36. c3 {[%clk 0:00:42]}  Kd7 {[%clk 0:00:27]}
37. Nc2 {[%clk 0:00:42]}  f5 {[%clk 0:00:28]} 38. Rh8 {[%clk 0:00:42]}  Ke7 {[%clk 0:00:29]} 39. Rh7+ {[%clk 0:00:43]}  Kf6 {[%clk 0:00:30]}
40. Nd4 {[%clk 0:00:42]}  Be8 {[%clk 0:00:25]} 41. Rc7 {[%clk 0:00:36]}  e5 {[%clk 0:00:24]} 42. Ne2 {[%clk 0:00:36]}  Ke6 {[%clk 0:00:25]}
43. Kd2 {[%clk 0:00:34]}  f4 {[%clk 0:00:25]} 44. b3 {[%clk 0:00:35]}  axb3 {[%clk 0:00:26]} 45. axb3 {[%clk 0:00:33]}  Nb5 {[%clk 0:00:27]}
46. Rxb7 {[%clk 0:00:38]}  Kd6 {[%clk 0:00:28]} 47. Rb8 {[%clk 0:00:36]}  Kd7 {[%clk 0:00:28]} 48. Rxb5 {[%clk 0:00:36]}  Ke6 {[%clk 0:00:28]}
49. Rb8 {[%clk 0:00:37]}  Bc6 {[%clk 0:00:29]} 50. Rb6 {[%clk 0:00:37]}  Kd6 {[%clk 0:00:30]} 51. Rxc6+ {[%clk 0:00:38]}  Kxc6 {[%clk 0:00:28]}
52. Kd3 {[%clk 0:00:37]}  Kd6 {[%clk 0:00:32]} 53. c4 {[%clk 0:00:37]}  d4 {[%clk 0:00:32]} 54. b4 {[%clk 0:00:38]}  Kc6 {[%clk 0:00:34]}
55. Nc1 {[%clk 0:00:36]}  Kd6 {[%clk 0:00:35]} 56. Nb3 {[%clk 0:00:37]}  Kc6 {[%clk 0:00:36]} 57. Nd2 {[%clk 0:00:37]}  Kd6 {[%clk 0:00:37]}
58. Ne4+ {[%clk 0:00:36]}  Kc6 {[%clk 0:00:36]} 59. Nf6 {[%clk 0:00:38]}  Kd6 {[%clk 0:00:40]} 60. Ke4 {[%clk 0:00:38]}  Kc6 {[%clk 0:00:37]}
61. Ng4 {[%clk 0:00:36]}  Kd6 {[%clk 0:00:36]} 62. Nf2 {[%clk 0:00:37]}  Ke6 {[%clk 0:00:36]} 63. Nd3 {[%clk 0:00:37]}  Kd6 {[%clk 0:00:37]}
64. Nxe5 {[%clk 0:00:37]}  Ke6 {[%clk 0:00:38]} 65. Nd3 {[%clk 0:00:38]} 1-0

[Event "2026 Biel Blitz Open"]
[Site "Biel, CH"]
[Date "2026.07.19"]
[Round "3"]
[White "Bu, Xiangzhi"]
[Black "Kolly, Jacques"]
[Result "1-0"]
[Board "1"]
[TimeControl "180+2"]
[WhiteFideId "8601445"]
[BlackFideId "1302183"]
[WhiteElo "2719"]
[BlackElo "2203"]
[WhiteTitle "GM"]
[BlackTitle "FM"]
[WhiteClock "0:00:13"]
[BlackClock "0:00:07"]
[Variant "Standard"]
[EndDate "2026.07.19"]
[EndTime "12:33:39"]

1. Nf3 {[%clk 0:03:03]}  d5 {[%clk 0:03:03]} 2. d4 {[%clk 0:03:04]}  e6 {[%clk 0:03:04]} 3. c4 {[%clk 0:03:05]}  f5 {[%clk 0:03:04]}
4. g3 {[%clk 0:03:05]}  Nf6 {[%clk 0:03:05]} 5. Bg2 {[%clk 0:03:06]}  c6 {[%clk 0:03:07]} 6. O-O {[%clk 0:03:07]}  Bd6 {[%clk 0:03:08]}
7. b3 {[%clk 0:03:08]}  O-O {[%clk 0:03:04]} 8. Ba3 {[%clk 0:03:09]}  Bxa3 {[%clk 0:03:05]} 9. Nxa3 {[%clk 0:03:10]}  Nbd7 {[%clk 0:03:05]}
10. Nc2 {[%clk 0:03:08]}  b6 {[%clk 0:03:03]} 11. Nce1 {[%clk 0:03:07]}  Bb7 {[%clk 0:03:04]} 12. Nd3 {[%clk 0:03:08]}  Rc8 {[%clk 0:03:04]}
13. Rc1 {[%clk 0:02:52]}  Qe7 {[%clk 0:02:55]} 14. Qd2 {[%clk 0:02:49]}  c5 {[%clk 0:02:44]} 15. cxd5 {[%clk 0:02:47]}  Bxd5 {[%clk 0:02:37]}
16. Qb2 {[%clk 0:02:14]}  Be4 {[%clk 0:02:08]} 17. Rfd1 {[%clk 0:02:05]}  Rfd8 {[%clk 0:01:36]} 18. Bf1 {[%clk 0:01:23]}  Bxf3 {[%clk 0:00:40]}
19. exf3 {[%clk 0:01:24]}  Nd5 {[%clk 0:00:35]} 20. dxc5 {[%clk 0:01:21]}  Nxc5 {[%clk 0:00:36]} 21. Nxc5 {[%clk 0:01:20]}  Rxc5 {[%clk 0:00:34]}
22. Rxc5 {[%clk 0:01:21]}  Qxc5 {[%clk 0:00:35]} 23. Qe5 {[%clk 0:01:21]}  Qd6 {[%clk 0:00:32]} 24. Qd4 {[%clk 0:01:16]}  Kf7 {[%clk 0:00:33]}
25. Rc1 {[%clk 0:01:15]}  Rd7 {[%clk 0:00:29]} 26. Bb5 {[%clk 0:01:15]}  Rc7 {[%clk 0:00:29]} 27. Rxc7+ {[%clk 0:00:43]}  Qxc7 {[%clk 0:00:30]}
28. Bc4 {[%clk 0:00:44]}  Qd6 {[%clk 0:00:23]} 29. h4 {[%clk 0:00:42]}  Qc6 {[%clk 0:00:18]} 30. a4 {[%clk 0:00:42]}  a5 {[%clk 0:00:15]}
31. h5 {[%clk 0:00:38]}  h6 {[%clk 0:00:15]} 32. Qe5 {[%clk 0:00:30]}  Qc7 {[%clk 0:00:08]} 33. Qd4 {[%clk 0:00:28]}  Qc6 {[%clk 0:00:09]}
34. f4 {[%clk 0:00:27]}  Qd6 {[%clk 0:00:09]} 35. Kf1 {[%clk 0:00:21]}  Qc6 {[%clk 0:00:11]} 36. Qe5 {[%clk 0:00:22]}  Qc5 {[%clk 0:00:07]}
37. g4 {[%clk 0:00:13]}  Ne7 {[%clk 0:00:07]} 1-0

[Event "2026 Biel Blitz Open"]
[Site "Biel, CH"]
[Date "2026.07.19"]
[Round "3"]
[White "Gautier, Anand"]
[Black "Safarli, Eltaj"]
[Result "0-1"]
[Board "2"]
[TimeControl "180+2"]
[WhiteFideId "26010186"]
[BlackFideId "13402129"]
[WhiteElo "2198"]
[BlackElo "2619"]
[WhiteTitle "FM"]
[BlackTitle "GM"]
[WhiteClock "0:00:07"]
[BlackClock "0:01:11"]
[Variant "Standard"]
[EndDate "2026.07.19"]
[EndTime "12:28:19"]

1. e4 {[%clk 0:03:03]}  c5 {[%clk 0:03:02]} 2. Nf3 {[%clk 0:03:03]}  e6 {[%clk 0:03:03]} 3. d4 {[%clk 0:03:05]}  cxd4 {[%clk 0:03:04]}
4. Nxd4 {[%clk 0:03:06]}  Nc6 {[%clk 0:03:05]} 5. Nc3 {[%clk 0:03:07]}  Bc5 {[%clk 0:03:07]} 6. Ndb5 {[%clk 0:03:07]}  d6 {[%clk 0:03:05]}
7. Be3 {[%clk 0:02:42]}  Bxe3 {[%clk 0:02:56]} 8. Nxd6+ {[%clk 0:02:34]}  Ke7 {[%clk 0:02:57]} 9. Nxc8+ {[%clk 0:02:34]}  Rxc8 {[%clk 0:02:58]}
10. Qxd8+ {[%clk 0:02:33]}  Rxd8 {[%clk 0:02:58]} 11. fxe3 {[%clk 0:02:34]}  Nf6 {[%clk 0:02:57]} 12. Bd3 {[%clk 0:02:12]}  h5 {[%clk 0:02:58]}
13. Ke2 {[%clk 0:02:13]}  h4 {[%clk 0:02:59]} 14. Nd1 {[%clk 0:02:00]}  Ne5 {[%clk 0:02:49]} 15. Nf2 {[%clk 0:02:00]}  Rc8 {[%clk 0:02:46]}
16. Rac1 {[%clk 0:01:42]}  g5 {[%clk 0:02:45]} 17. c4 {[%clk 0:01:15]}  g4 {[%clk 0:02:46]} 18. b3 {[%clk 0:01:07]}  g3 {[%clk 0:02:43]}
19. hxg3 {[%clk 0:01:04]}  hxg3 {[%clk 0:02:45]} 20. Rxh8 {[%clk 0:01:03]}  Rxh8 {[%clk 0:02:46]} 21. Nh3 {[%clk 0:01:03]}  Nxd3 {[%clk 0:02:41]}
22. Kxd3 {[%clk 0:01:03]}  Rd8+ {[%clk 0:02:42]} 23. Ke2 {[%clk 0:00:49]}  Nxe4 {[%clk 0:02:43]} 24. Rc2 {[%clk 0:00:51]}  e5 {[%clk 0:02:39]}
25. Ng1 {[%clk 0:00:44]}  f5 {[%clk 0:02:36]} 26. Nf3 {[%clk 0:00:45]}  Ke6 {[%clk 0:02:36]} 27. Nd2 {[%clk 0:00:42]}  Nc5 {[%clk 0:02:14]}
28. Kf3 {[%clk 0:00:41]}  Rg8 {[%clk 0:02:12]} 29. Nf1 {[%clk 0:00:40]}  e4+ {[%clk 0:02:11]} 30. Ke2 {[%clk 0:00:41]}  Nd3 {[%clk 0:02:11]}
31. a3 {[%clk 0:00:37]}  a5 {[%clk 0:02:12]} 32. b4 {[%clk 0:00:24]}  axb4 {[%clk 0:02:12]} 33. axb4 {[%clk 0:00:25]}  Ke5 {[%clk 0:02:06]}
34. Rc3 {[%clk 0:00:12]}  f4 {[%clk 0:01:55]} 35. exf4+ {[%clk 0:00:09]}  Nxf4+ {[%clk 0:01:56]} 36. Kd2 {[%clk 0:00:05]}  Nd3 {[%clk 0:01:43]}
37. Ne3 {[%clk 0:00:06]}  Rf8 {[%clk 0:01:41]} 38. Rb3 {[%clk 0:00:07]}  Rf2+ {[%clk 0:01:39]} 39. Kc3 {[%clk 0:00:09]}  Re2 {[%clk 0:01:39]}
40. Nc2 {[%clk 0:00:04]}  Rxg2 {[%clk 0:01:38]} 41. c5 {[%clk 0:00:05]}  Rg1 {[%clk 0:01:25]} 42. Ne3 {[%clk 0:00:04]}  g2 {[%clk 0:01:13]}
43. Nxg2 {[%clk 0:00:05]}  Rxg2 {[%clk 0:01:15]} 44. Kc4 {[%clk 0:00:06]}  Rb2 {[%clk 0:01:10]} 45. Rxb2 {[%clk 0:00:05]}  Nxb2+ {[%clk 0:01:12]}
46. Kc3 {[%clk 0:00:04]}  e3 {[%clk 0:01:10]} 47. b5 {[%clk 0:00:05]}  Na4+ {[%clk 0:01:10]} 48. Kd3 {[%clk 0:00:05]}  Nxc5+ {[%clk 0:01:11]}
49. Kxe3 {[%clk 0:00:07]} 0-1